lending/lending_fUSD_20240816
["ID","MTS","AMOUNT","RATE_DAILY","PERIOD"]
[335043860,1723785038876,-200.0,0.00020791,2]
[335043862,1723785038885,-200.0,0.00020791,2]
[335043864,1723785038894,-250.0,0.00020791,2]
[335043866,1723785038903,-4363.0,0.000208,2]
[335043867,1723785038912,-150.61,0.00021661,2]
[335043869,1723785038922,-195.2,0.00021732,2]
[335043871,1723785038931,-167.0,0.00021764,2]
[335043873,1723785038940,-510.25664154,0.00021771,2]
[335043875,1723785038951,-150.16,0.00021918,2]
[335043878,1723785038963,-327.11,0.00021918,2]
[335043880,1723785038972,-174.0,0.00022,2]
[335043882,1723785038982,-251.39,0.00022139,2]
[335043884,1723785038992,-536.68524531,0.00022191,2]
[335043885,1723785039002,-500.0,0.00022191,2]
[335043887,1723785039011,-500.0,0.00022191,2]
[335043889,1723785039020,-204.8,0.00022335,2]
[335043891,1723785039030,-1000.0,0.00022385,2]
[335043893,1723785039039,-150.16,0.00022914,2]
[335043895,1723785039049,-367.40069065,0.00022999,2]
[335043897,1723785039059,-500.0,0.00023,7]
[335043899,1723785039068,-174.0,0.00023014,2]
[335043901,1723785039078,-180.0,0.00023205,2]
[335043903,1723785039087,-400.0,0.000233,8]
[335043905,1723785039097,-900.0,0.000234,8]
[335043907,1723785039106,-232.0,0.000235,11]
[335043909,1723785039115,-1400.0,0.000235,8]
[335043911,1723785039124,-500.0,0.00023561,7]
[335043913,1723785039134,-500.0,0.00023561,7]
[335043915,1723785039143,-500.0,0.00023561,7]
[335043916,1723785039152,-500.0,0.00023561,7]
[335043918,1723785039162,-500.0,0.00023561,7]
[335043920,1723785039171,-500.0,0.00023561,7]
[335043921,1723785039181,-500.0,0.00023561,7]
[335043923,1723785039190,-500.0,0.00023561,7]
[335043925,1723785039199,-500.0,0.00023561,7]
[335043926,1723785039209,-500.0,0.00023561,7]
[335043928,1723785039218,-500.0,0.00023561,7]
[335043930,1723785039227,-500.0,0.00023561,7]
[335043931,1723785039236,-500.0,0.00023561,7]
[335043933,1723785039246,-500.0,0.00023561,7]
[335043934,1723785039255,-500.0,0.00023561,7]
[335043935,1723785039264,-500.0,0.00023561,7]
[335043936,1723785039273,-500.0,0.00023561,7]
[335043937,1723785039283,-500.0,0.00023561,7]
[335043938,1723785039293,-500.0,0.00023561,7]
[335043939,1723785039302,-500.0,0.00023561,7]
[335043940,1723785039312,-500.0,0.00023561,7]
[335043941,1723785039321,-500.0,0.00023561,7]
[335043942,1723785039330,-639.26,0.00023561,7]
[335043943,1723785039339,-1900.0,0.000236,8]
[335043944,1723785039348,-181.62999869,0.00023615,2]
[335043945,1723785039357,-3769.7175,0.00023625,2]
[335043946,1723785039366,-181.62999868,0.00023675,2]
[335043947,1723785039375,-417.80862872,0.0002368,2]
[335043948,1723785039389,-500.0,0.00023694,2]
[335043949,1723785039398,-500.0,0.000237,7]
[335043950,1723785039407,-2300.0,0.000237,8]
[335043951,1723785039416,-500.0,0.00023703,2]
[335043952,1723785039426,-193037.49279666,0.00023706,2]
[335043953,1723785039436,-1018849.5521067,0.00023709,2]
[335043954,1723785039445,-500.0,0.00023712,2]
[335043955,1723785039454,-23922.73216711,0.00023714,2]
[335043956,1723785039465,-207.36066643,0.00023715,2]
[335043957,1723785039475,-15357.4453167,0.00023715,3]
[335043958,1723785039485,-1950.5873,0.00023715,2]
[335043959,1723785039494,-263.68191131,0.00023718,2]
[335043960,1723785039503,-500.0,0.00023721,2]
[335043961,1723785039513,-207.36066643,0.00023722,2]
[335043962,1723785039522,-23922.73216711,0.00023723,2]
[335043963,1723785039532,-193037.49279666,0.00023724,2]
[335043964,1723785039541,-155727.1428,0.00023725,2]
[335043965,1723785039549,-1018849.5521067,0.00023727,2]
[335043966,1723785039558,-423.17148383,0.00023728,2]
[335043967,1723785039567,-1018849.5521067,0.00023728,2]
[335043968,1723785039577,-1018849.5521067,0.00023729,2]
[335043969,1723785039587,-423.17148383,0.00023729,2]
[335043970,1723785039596,-500.0,0.0002373,2]
[335043971,1723785039606,-423.17148383,0.0002373,2]
[335043972,1723785039615,-181.62999868,0.00023735,2]
[335043973,1723785039624,-1357.9986,0.00023735,2]
[335043974,1723785039633,-25063.88844995,0.00023735,2]
[335043975,1723785039642,-207.36066643,0.00023736,2]
[335043976,1723785039652,-23922.73216711,0.00023737,2]
[335043977,1723785039662,-207.36066643,0.00023738,2]
[335043978,1723785039671,-500.0,0.00023738,2]
[335043979,1723785039681,-193037.49279666,0.00023741,2]
[335043980,1723785039690,-25063.88844995,0.00023741,2]
[335043981,1723785039700,-500.0,0.00023747,2]
[335043982,1723785039710,-180127.14481513,0.00023748,2]
[335043984,1723785040676,-4186.27582778,0.00023748,2]
[335043985,1723785040687,-58329.74315271,0.00023748,2]
[335043986,1723785040770,-2869.05284405,0.00023748,2]
[335043992,1723785041488,-1473.06440534,0.00023748,2]
[335043993,1723785041510,-952.588,0.00023748,2]
[335044001,1723785043872,-720.53499988,0.00023748,2]
[335044002,1723785043889,-742.96054236,0.00023748,2]
[335044003,1723785043902,-515.811067,0.00023748,2]
[335044005,1723785043913,-475.33246739,0.00023748,2]
[335044006,1723785043924,-565.99524606,0.00023748,2]
[335044007,1723785043937,-1341.9696176,0.00023748,2]
[335044008,1723785043948,-3145.92623713,0.00023748,2]
[335044009,1723785043960,-916.74900749,0.00023748,2]
[335044010,1723785043971,-369.41694392,0.00023748,2]
[335044012,1723785043982,-267.06272339,0.00023748,2]
[335044014,1723785044959,-761849.92420947,0.00023748,2]
[335044015,1723785044968,-25063.88844995,0.00023751,2]
[335044016,1723785044977,-423.17148383,0.00023754,2]
[335044017,1723785044986,-193037.49279666,0.00023754,2]
[335044018,1723785044996,-15357.4453167,0.00023755,3]
[335044019,1723785045005,-500.0,0.00023756,2]
[335044020,1723785045014,-23922.73216711,0.00023757,2]
[335044021,1723785045024,-1018849.5521067,0.00023761,2]
[335044022,1723785045034,-193037.49279666,0.00023762,2]
[335044023,1723785045044,-193037.49279666,0.00023763,2]
[335044024,1723785045053,-423.17148383,0.00023763,2]
[335044025,1723785045062,-263.68191131,0.00023764,2]
[335044026,1723785045072,-263.68191131,0.00023765,2]
[335044027,1723785045081,-23922.73216711,0.00023765,2]
[335044028,1723785045091,-500.0,0.00023765,2]
[335044029,1723785045101,-880.0,0.00023765,2]
[335044030,1723785045111,-263.68191131,0.00023765,2]
[335044031,1723785045121,-52440.70819937,0.00023766,2]
[335044032,1723785045132,-4911.22029618,0.00023766,2]
[335044033,1723785045143,-1404.61876171,0.00023766,2]
[335044034,1723785046401,-290.05976315,0.0001999,2]
[335044035,1723785046412,-536.37023685,0.0001999,2]
[335044036,1723785046422,-826.43,0.0002069,2]
[335044037,1723785046431,-826.43,0.00020781,2]
[335044038,1723785046440,-570.84231132,0.0002079,2]
[335044039,1723785046451,-255.58768868,0.0002079,2]
[335044040,1723785046464,-6.01406019,0.0002079,2]
[335044041,1723785046476,-820.41593981,0.0002079,2]
[335044042,1723785046487,-150.0,0.00023748,2]
[335044043,1723785046498,-158.33902515,0.00023766,2]
[335044044,1723785046512,-1887.27218434,0.00023766,2]
[335044045,1723785046527,-678.72349785,0.00023766,2]
[335044046,1723785046541,-2701.23101814,0.00023766,2]
[335044047,1723785046552,-4694.20147376,0.00023766,2]
[335044048,1723785046565,-1110.1255479,0.00023766,2]
[335044049,1723785046578,-3596.64044679,0.00023766,2]
[335044050,1723785046592,-8843.92475302,0.00023766,2]
[335044051,1723785046617,-826.43,0.00021722,2]
[335044052,1723785046629,-307.70449414,0.00023766,2]
[335044053,1723785046642,-434.012,0.00023766,2]
[335044054,1723785046656,-3398.41651,0.00023766,2]
[335044055,1723785046671,-31953.5332958,0.00023766,2]
[335044056,1723785046685,-1904.96994,0.00023766,2]
[335044057,1723785046698,-745.11919191,0.00023766,2]
[335044058,1723785046711,-2971.79283218,0.00023766,2]
[335044059,1723785046729,-1217.64466643,0.00023766,2]
[335044060,1723785046743,-850.03340466,0.00023766,2]
[335044061,1723785046758,-299.07844765,0.00023766,2]
[335044062,1723785046771,-268.25,0.00023766,2]
[335044063,1723785046784,-283.49453764,0.00023766,2]
[335044064,1723785046798,-54640.62865134,0.00023766,2]
[335044065,1723785046811,-6140.54993197,0.00023766,2]
[335044066,1723785046824,-8046.26506283,0.00023766,2]
[335044068,1723785046852,-547.44,0.00023766,2]
[335044069,1723785046866,-9923.04667477,0.00023766,2]
[335044070,1723785046879,-1531.57713695,0.00023766,2]
[335044071,1723785046894,-1917.4034452,0.00023766,2]
[335044072,1723785046908,-354.45948186,0.00023766,2]
[335044073,1723785046922,-1744.32203037,0.00023766,2]
[335044074,1723785046935,-417.95823573,0.00023766,2]
[335044075,1723785046947,-1453.49,0.00023766,2]
[335044076,1723785046969,-826.43,0.0002199,2]
[335044077,1723785046980,-54663.08273293,0.00023766,2]
[335044078,1723785046994,-459.32379129,0.00023766,2]
[335044087,1723785103995,1822.79750273,9.988e-05,2]
[335044098,1723785214001,1518.99791894,9.988e-05,2]
[335044107,1723785313564,1518.99791894,9.988e-05,2]
[335044108,1723785399144,791.39791577,9.988e-05,2]
[335044109,1723785495180,791.39791577,9.988e-05,2]
[335044111,1723785539676,4143.88480506,9.988e-05,2]
[335044112,1723785601145,-300.0,9.987e-05,2]
[335044113,1723785601168,-12120.8857139,9.988e-05,2]
[335044114,1723785601190,-791.39791577,9.988e-05,2]
[335044115,1723785601212,-183.77091077,0.0001089,2]
[335044116,1723785601235,-11815.94545956,0.00010899,2]
[335044117,1723785640852,-300.0,9.987e-05,2]
[335044118,1723785640873,-791.39791577,9.988e-05,2]
[335044119,1723785640895,-2385.97265458,0.00010861,2]
[335044120,1723785640917,-389.56505223,0.00010899,2]
[335044121,1723785640939,-155.0,0.00010899,2]
[335044122,1723785643852,11053.06437742,0.00010799,2]
[335044123,1723785678038,-300.0,0.00010798,2]
[335044124,1723785678061,-818.0,0.00010799,2]
[335044125,1723785736085,917.9316,9.887e-05,2]
[335044126,1723785801147,791.39791577,9.887e-05,2]
[335044127,1723785931615,791.39791577,9.887e-05,2]
[335044129,1723786022090,791.39791577,9.887e-05,2]
[335044135,1723786112161,26158.08171042,9.943e-05,2]
[335044136,1723786120642,791.39791577,9.887e-05,2]
[335044178,1723786184673,791.39791577,9.887e-05,2]
[335044209,1723786231598,-202.96339221,0.00010505,2]
[335044210,1723786231608,-202.96339221,0.00010505,2]
[335044211,1723786231617,-546.9938583,0.00010713,2]
[335044212,1723786231626,-261.34,0.00010799,2]
[335044213,1723786231636,-1141.94738341,0.0001089,2]
[335044214,1723786231645,-318.31588367,0.00010899,2]
[335044215,1723786231654,-2386.53343546,0.00010949,2]
[335044216,1723786231664,-155.38649312,0.00010979,2]
[335044217,1723786231673,-1257.5209126,0.00010999,2]
[335044218,1723786231682,-949.25809032,0.00010999,2]
[335044219,1723786231694,-2432.25797456,0.00011,2]
[335044220,1723786231706,-1904.64529424,0.00011,2]
[335044221,1723786231718,-500.0,0.00011,2]
[335044243,1723786231934,-300.69211726,0.00011,2]
[335044245,1723786231947,-2019.02952842,0.00011,2]
[335044250,1723786231997,-58044.37798554,0.00011,2]
[335044259,1723786237574,-361.29910214,0.00010899,2]
[335044260,1723786237586,-10.87909077,0.00010899,2]
[335044261,1723786237596,-386.69111274,0.00011,2]
[335044262,1723786237727,-404.64145571,0.00011,2]
[335044263,1723786237739,-804.42542434,0.00011,2]
[335044264,1723786237750,-794.86802,0.00011,2]
[335044265,1723786237762,-3500.51760241,0.00011,2]
[335044266,1723786237777,-865.69,0.00011,2]
[335044267,1723786237861,-113690.160127,0.00011,2]
[335044268,1723786237871,-591.87,0.00011009,2]
[335044269,1723786237880,-219.6,0.00011009,2]
[335044270,1723786237889,-26158.08171042,0.00011336,2]
[335044271,1723786237898,-472.40835277,0.00011984,2]
[335044272,1723786237906,-304.06728316,0.00012089,2]
[335044273,1723786237915,-270.51980682,0.00012089,2]
[335044274,1723786237924,-155.26837699,0.00012126,2]
[335044275,1723786237934,-653.89626809,0.00012126,2]
[335044276,1723786237947,-155.0,0.00012613,2]
[335044277,1723786237956,-250.0,0.00012745,2]
[335044278,1723786237966,-348.26413265,0.00013688,2]
[335044279,1723786237975,-500.39111977,0.00013688,2]
[335044280,1723786237985,-2751.0,0.00013699,2]
[335044281,1723786237994,-4818.15,0.0001387,2]
[335044282,1723786238003,-536.44870464,0.00013971,2]
[335044284,1723786238013,-536.44870464,0.00013971,2]
[335044286,1723786238022,-151.23,0.00013973,2]
[335044288,1723786238032,-153.69,0.00013973,2]
[335044289,1723786238041,-415.05274519,0.00014245,2]
[335044290,1723786238051,-316.86944542,0.00014517,2]
[335044291,1723786238060,-2766.6366312,0.00014681,2]
[335044292,1723786238070,-150.0,0.000156,2]
[335044293,1723786238080,-167.0,0.0001612,2]
[335044294,1723786238090,-150.96,0.0001639,2]
[335044295,1723786238099,-1764.55855345,0.000165,2]
[335044296,1723786238109,-281.01,0.00016605,2]
[335044297,1723786238118,-156.16,0.00018399,2]
[335044298,1723786238127,-2424.03,0.00018482,2]
[335044299,1723786238137,-15235.56083,0.0001856,2]
[335044300,1723786238147,-23890.0,0.00018571,2]
[335044301,1723786238156,-281.01,0.00018869,2]
[335044302,1723786238166,-1000.0,0.00019662,2]
[335044303,1723786238176,-200.0,0.00019939,2]
[335044304,1723786238186,-500.0,0.00019999,2]
[335044305,1723786238195,-500.0,0.00019999,2]
[335044306,1723786238204,-499.999999,0.0002,2]
[335044307,1723786238213,-201.32,0.00020259,2]
[335044308,1723786238222,-161.92,0.0002051,2]
[335044309,1723786238232,-946.539386,0.00020548,2]
[335044310,1723786238242,-156.16,0.00020699,2]
[335044311,1723786238251,-167.0,0.00021043,2]
[335044312,1723786238260,-281.01,0.00021133,2]
[335044313,1723786238270,-946.539386,0.0002137,2]
[335044314,1723786238279,-150.16,0.00021918,2]
[335044315,1723786238288,-272.59,0.00021918,2]
[335044316,1723786238298,-1000.0,0.0002212,2]
[335044317,1723786238307,-500.0,0.00022191,2]
[335044318,1723786238316,-500.0,0.00022191,2]
[335044319,1723786238325,-946.539386,0.00022192,2]
[335044320,1723786238335,-156.16,0.00022999,2]
[335044321,1723786238344,-200.0,0.00023,2]
[335044322,1723786238354,-946.539386,0.00023014,2]
[335044323,1723786238363,-624.61862578,0.00023018,2]
[335044324,1723786238372,-161.92,0.00023073,2]
[335044325,1723786238381,-15235.56083,0.0002309,3]
[335044326,1723786238391,-678.37928098,0.00023095,2]
[335044327,1723786238400,-505.46037987,0.00023096,2]
[335044328,1723786238410,-150.16,0.00023135,2]
[335044329,1723786238419,-722.99653477,0.00023287,2]
[335044330,1723786238428,-2235.0,0.000233,2]
[335044331,1723786238438,-1500.0,0.00023367,2]
[335044332,1723786238448,-1500.0,0.00023367,2]
[335044333,1723786238457,-164.04910116,0.00023369,2]
[335044334,1723786238467,-281.01,0.00023397,2]
[335044335,1723786238477,-151.23,0.00023435,2]
[335044336,1723786238486,-991.0,0.000235,6]
[335044337,1723786238495,-500.57,0.000235,3]
[335044338,1723786238504,-911.0,0.000235,2]
[335044339,1723786238514,-1939.92351712,0.0002354,2]
[335044340,1723786238523,-596.11,0.00023561,7]
[335044341,1723786238532,-596.11,0.00023561,7]
[335044342,1723786238542,-596.11,0.00023561,7]
[335044343,1723786238551,-596.11,0.00023561,7]
[335044344,1723786238561,-596.11,0.00023561,7]
[335044345,1723786238571,-596.11,0.00023561,7]
[335044346,1723786238581,-596.11,0.00023561,7]
[335044347,1723786238590,-596.11,0.00023561,7]
[335044348,1723786238599,-596.11,0.00023561,7]
[335044349,1723786238609,-596.11,0.00023561,7]
[335044350,1723786238619,-596.11,0.00023561,7]
[335044351,1723786238628,-596.11,0.00023561,7]
[335044352,1723786238638,-596.11,0.00023561,7]
[335044353,1723786238648,-596.11,0.00023561,7]
[335044354,1723786238657,-596.11,0.00023561,7]
[335044355,1723786238667,-596.11,0.00023561,7]
[335044356,1723786238677,-596.11,0.00023561,7]
[335044357,1723786238687,-596.11,0.00023561,7]
[335044358,1723786238703,-596.11,0.00023561,7]
[335044359,1723786238712,-596.11,0.00023561,7]
[335044360,1723786238722,-596.11,0.00023561,7]
[335044361,1723786238731,-596.11,0.00023561,7]
[335044362,1723786238741,-596.11,0.00023561,7]
[335044363,1723786238750,-596.14,0.00023561,7]
[335044364,1723786238760,-356.8403,0.0002358,2]
[335044365,1723786238774,-1500.0,0.00023582,2]
[335044366,1723786238783,-155.59736033,0.00023592,2]
[335044367,1723786238792,-150.0,0.00023597,2]
[335044368,1723786238802,-4670.0,0.000236,2]
[335044369,1723786238812,-150.0,0.00023615,2]
[335044370,1723786238822,-285.99221951,0.00023635,2]
[335044371,1723786238834,-150.0,0.00023663,2]
[335044372,1723786238845,-15235.56083,0.0002367,3]
[335044373,1723786238857,-20058.5138,0.0002368,2]
[335044374,1723786238866,-500.0,0.00023686,2]
[335044375,1723786238876,-263.24769125,0.00023686,2]
[335044376,1723786238885,-5153.5218,0.0002369,2]
[335044377,1723786238894,-153.72620446,0.000237,2]
[335044378,1723786238903,-356.84029,0.000237,2]
[335044379,1723786238913,-500.0,0.00023738,2]
[335044380,1723786238922,-500.0,0.00023747,2]
[335044381,1723786238931,-280.64998323,0.00023753,2]
[335044382,1723786238941,-500.0,0.00023756,2]
[335044383,1723786238951,-15235.56083,0.00023756,3]
[335044384,1723786238960,-500.0,0.00023765,2]
[335044385,1723786238970,-135849.03656883,0.00023766,2]
[335044386,1723786238983,-541261.84107501,0.00023766,2]
[335044387,1723786238994,-308.66866659,0.00023766,2]
[335044388,1723786239006,-519.07829482,0.00023766,2]
[335044389,1723786239021,-29165.88530238,0.00023766,2]
[335044390,1723786239058,-2862.10250956,0.00023766,2]
[335044391,1723786239069,-8046.48342549,0.00023766,2]
[335044392,1723786239080,-10286.6181317,0.00023766,2]
[335044393,1723786239092,-8017.13843609,0.00023766,2]
[335044394,1723786239672,-1950.0,0.00023766,2]
[335044396,1723786240775,-325.57201946,0.00023766,2]
[335044397,1723786240787,-430.48603375,0.00023766,2]
[335044398,1723786240798,-1922.42255462,0.00023766,2]
[335044399,1723786240831,-299.99,0.00013688,2]
[335044400,1723786240840,-9003.61738854,0.00023766,2]
[335044401,1723786240852,-155.09157166,0.00023766,2]
[335044402,1723786240862,-573.1560957,0.00023766,2]
[335044403,1723786240871,-263.68191131,0.00023766,2]
[335044404,1723786240880,-263.68191131,0.00023766,2]
[335044405,1723786240890,-263.68191131,0.00023768,2]
[335044406,1723786240900,-207.36066643,0.0002377,2]
[335044407,1723786240909,-193037.49279666,0.00023771,2]
[335044408,1723786240918,-23922.73216711,0.00023772,2]
[335044409,1723786240928,-500.0,0.00023774,2]
[335044410,1723786240938,-500.0,0.00023774,2]
[335044411,1723786240951,-207.36066643,0.00023775,2]
[335044412,1723786240959,-207.36066643,0.00023778,2]
[335044413,1723786240969,-76107.97122172,0.0002378,3]
[335044414,1723786240980,-2422.93774298,0.0002378,3]
[335044415,1723786241020,-14845.56369122,0.0002378,3]
[335044418,1723786242561,-423.95581672,0.00010699,2]
[335044419,1723786242575,-123.03804158,0.00010699,2]
[335044420,1723786242584,-466.96195842,0.00022999,2]
[335044427,1723786243807,-157.65666736,0.00022999,2]
[335044428,1723786243817,-13272.45315408,0.0002378,3]
[335044429,1723786243837,-7064.0384415,0.0002378,3]
[335044430,1723786243850,-25063.88844995,0.00023782,2]
[335044431,1723786243861,-25063.88844995,0.00023782,2]
[335044432,1723786243871,-500.0,0.00023782,2]
[335044433,1723786243881,-500.0,0.00023782,2]
[335044434,1723786243890,-423.17148383,0.00023783,2]
[335044435,1723786243900,-23922.73216711,0.00023783,2]
[335044436,1723786243910,-25063.88844995,0.00023785,2]
[335044437,1723786243919,-185094.78214059,0.00023785,2]
[335044438,1723786243931,-7942.71065607,0.00023785,2]
[335044439,1723786243942,-419773.97742191,0.00023786,2]
[335044440,1723786243958,-1067.08377648,0.00023786,2]
[335044441,1723786243970,-1160.60801783,0.00023786,2]
[335044442,1723786243983,-21642.8178528,0.00023786,2]
[335044443,1723786243995,-507.53028692,0.00023786,2]
[335044444,1723786244006,-1257.99548884,0.00023786,2]
[335044445,1723786244018,-18653.13393223,0.00023786,2]
[335044446,1723786244029,-8673.86875784,0.00023786,2]
[335044447,1723786244041,-357.69482547,0.00023786,2]
[335044448,1723786244052,-4265.75,0.00023786,2]
[335044449,1723786244063,-500.0,0.00023786,2]
[335044450,1723786244075,-13057.23584385,0.00023786,2]
[335044451,1723786245258,-527931.85590253,0.00023786,2]
[335044452,1723786245267,-207.36066643,0.00023787,2]
[335044453,1723786245277,-163.34208761,0.00023787,2]
[335044454,1723786245287,-263.68191131,0.00023789,2]
[335044455,1723786245297,-423.17148383,0.00023789,2]
[335044456,1723786245307,-228533.412451,0.0002379,3]
[335044457,1723786245316,-77704.4228565,0.0002379,3]
[335044458,1723786245326,-500.0,0.00023791,2]
[335044459,1723786245335,-500.0,0.00023791,2]
[335044460,1723786245344,-423.17148383,0.00023793,2]
[335044461,1723786245355,-25063.88844995,0.00023793,2]
[335044462,1723786245364,-25063.88844995,0.00023799,2]
[335044463,1723786245374,-23922.73216711,0.00023799,2]
[335044464,1723786245383,-495.0,0.000238,7]
[335044465,1723786245393,-991.0,0.000238,7]
[335044466,1723786245402,-750146.46699697,0.000238,7]
[335044467,1723786245419,-500.0,0.000238,2]
[335044468,1723786245429,-2000.0,0.000238,2]
[335044469,1723786245439,-495.0,0.000238,7]
[335044470,1723786245453,-292.0,0.000238,2]
[335044471,1723786245465,-193.0,0.000238,7]
[335044472,1723786245475,-300.52,0.000238,2]
[335044473,1723786245485,-500.0,0.000238,2]
[335044474,1723786245494,-1500.0,0.00023808,2]
[335044475,1723786245504,-150.0,0.00023808,4]
[335044476,1723786245515,-150.0,0.00023808,4]
[335044477,1723786245525,-150.0,0.00023808,4]
[335044478,1723786245535,-150.0,0.00023808,4]
[335044479,1723786245545,-150.0,0.00023821,2]
[335044480,1723786245554,-346.49593867,0.00023834,2]
[335044481,1723786245565,-1000.0,0.00023834,2]
[335044482,1723786245575,-813.99075909,0.00023835,2]
[335044483,1723786245585,-70904.20309502,0.00023835,11]
[335044484,1723786245595,-151.0,0.00023835,7]
[335044485,1723786245604,-151.378179,0.00023835,7]
[335044486,1723786245614,-500.0,0.00023835,7]
[335044487,1723786245624,-163.03132972,0.00023835,7]
[335044488,1723786245634,-500.0,0.00023835,7]
[335044489,1723786245644,-500.0,0.00023835,7]
[335044490,1723786245655,-500.0,0.00023835,7]
[335044491,1723786245664,-449.512931,0.00023835,7]
[335044492,1723786245674,-449.512931,0.00023835,7]
[335044493,1723786245684,-449.512931,0.00023835,7]
[335044494,1723786245694,-449.512931,0.00023835,7]
[335044495,1723786245708,-449.512931,0.00023835,7]
[335044496,1723786245718,-449.512931,0.00023835,7]
[335044497,1723786245728,-449.512931,0.00023835,7]
[335044498,1723786245738,-449.512931,0.00023835,7]
[335044499,1723786245748,-449.512931,0.00023835,7]
[335044500,1723786245758,-449.512931,0.00023835,7]
[335044501,1723786245771,-449.512931,0.00023835,7]
[335044502,1723786245781,-449.512931,0.00023835,7]
[335044503,1723786245791,-449.512931,0.00023835,7]
[335044504,1723786245800,-449.512931,0.00023835,7]
[335044505,1723786245810,-449.512931,0.00023835,7]
[335044506,1723786245820,-449.512931,0.00023835,7]
[335044507,1723786245830,-449.512931,0.00023835,7]
[335044508,1723786245839,-449.512931,0.00023835,7]
[335044509,1723786245850,-449.512931,0.00023835,7]
[335044510,1723786245860,-449.512926,0.00023835,7]
[335044511,1723786245870,-500.0,0.00023835,7]
[335044512,1723786245880,-447.10381461,0.00023835,7]
[335044513,1723786245890,-500.0,0.00023835,7]
[335044514,1723786245900,-500.0,0.00023835,7]
[335044515,1723786245910,-500.0,0.00023835,7]
[335044516,1723786245919,-500.0,0.00023835,7]
[335044517,1723786245928,-500.0,0.00023835,7]
[335044518,1723786245938,-500.0,0.00023835,7]
[335044519,1723786245953,-500.0,0.00023835,7]
[335044520,1723786245967,-500.0,0.00023835,7]
[335044521,1723786245977,-500.0,0.00023835,7]
[335044522,1723786245986,-500.0,0.00023835,7]
[335044523,1723786245996,-500.0,0.00023835,7]
[335044524,1723786246006,-502.0989711,0.00023835,7]
[335044525,1723786246015,-500.0,0.00023835,7]
[335044526,1723786246025,-500.0,0.00023835,7]
[335044527,1723786246035,-500.0,0.00023835,7]
[335044528,1723786246045,-500.0,0.00023835,7]
[335044529,1723786246054,-500.0,0.00023835,7]
[335044530,1723786246064,-151.96073608,0.00023835,7]
[335044531,1723786246073,-500.0,0.00023835,7]
[335044532,1723786246082,-514.46533971,0.00023835,7]
[335044533,1723786246091,-500.0,0.00023835,7]
[335044534,1723786246100,-500.0,0.00023835,7]
[335044535,1723786246110,-500.0,0.00023835,7]
[335044536,1723786246119,-500.0,0.00023835,7]
[335044537,1723786246129,-499.73209482,0.00023835,7]
[335044538,1723786246138,-500.0,0.00023835,7]
[335044539,1723786246148,-500.0,0.00023835,7]
[335044540,1723786246157,-500.0,0.00023835,7]
[335044541,1723786246166,-500.0,0.00023835,7]
[335044542,1723786246176,-500.0,0.00023835,7]
[335044543,1723786246185,-500.0,0.00023835,7]
[335044544,1723786246194,-500.0,0.00023835,7]
[335044545,1723786246204,-500.0,0.00023835,7]
[335044546,1723786246213,-500.0,0.00023835,7]
[335044547,1723786246223,-500.0,0.00023835,7]
[335044548,1723786246232,-272.02337998,0.00023835,7]
[335044549,1723786246242,-500.0,0.00023835,7]
[335044550,1723786246251,-500.0,0.00023835,7]
[335044551,1723786246260,-500.0,0.00023835,7]
[335044552,1723786246270,-500.0,0.00023835,7]
[335044553,1723786246280,-500.0,0.00023835,7]
[335044554,1723786246289,-500.0,0.00023835,7]
[335044555,1723786246298,-500.0,0.00023835,7]
[335044556,1723786246308,-501.63382798,0.00023835,7]
[335044557,1723786246317,-500.0,0.00023835,7]
[335044558,1723786246326,-499.81026194,0.00023835,7]
[335044559,1723786246336,-666.81,0.00023835,7]
[335044560,1723786246345,-666.81,0.00023835,7]